Cogmind - Beta 13 @@@ ROGUE MODE // 2024.04.18 @ 05:45:59 Player: A Moose Result: Destroyed by Y-45 Defender with Heavy Assault Rifle Performance ------------- Evolutions (1) 500 Regions Visited (3) 600 Robots Destroyed (44) 220 Value Destroyed (824) 824 Prototype IDs (0) 0 Alien Tech Used (0) 0 Bonus (26) 26 TOTAL SCORE: 2170 Bonus ------- High Alert Combat Kills 26 Cogmind --------- Core Integrity 0/400 Matter 183/300 Energy 83/100 System Corruption 0% Temperature Cool (9) Movement Core (50) Location -9/Materials Parts ------- > --- POWER (1) -------- (None) > --- PROPULSION (2) --- (None) > --- UTILITY (4) ------ Improved Heat Sink > --- WEAPON (2) ------- (None) > --- INVENTORY (5) ---- Light Nuclear Core Signal Interpreter Tractor Beam Datajack Mining Laser Peak State ------------ > --- POWER ------------ Ion Engine > --- PROPULSION ------- Wheel Wheel > --- UTILITY ---------- Improved Heat Sink Medium Storage Unit Targeting Computer Hacking Suite > --- WEAPON ----------- Particle Gun Beam Cannon > --- INVENTORY -------- Light Ion Engine Light Nuclear Core Wheel Compact Wheel Tractor Beam Light Assault Rifle Rocket Launcher Datajack Mining Laser Mining Laser [Rating: 15] Favorites ----------- Power Ion Engine Engine Ion Engine Propulsion Compact Wheel Treads Light Treads Wheel Compact Wheel Utility Medium Storage Unit Device Improved Heat Sink Storage Medium Storage Unit Processor Targeting Computer Hackware Hacking Suite Weapon Beam Cannon Energy Gun Particle Gun Energy Cannon Beam Cannon Ballistic Gun Light Assault Rifle Launcher Rocket Launcher Special Weapon Mining Laser Build | -11 -10 -10 -9 ------- Run | Yrd Mat Min Mat Slots Evolved 2 | . . . 2 Power . | . . . . Propulsion . | . . . . Utility 2 | . . . 2 Weapon . | . . . . Parts Attached 35 | 7 7 11 10 Power 4 | 1 1 2 . Engine 4 | 1 1 2 . Core . | . . . . Reactor . | . . . . Propulsion 10 | 2 1 3 4 Treads 2 | . . . 2 Leg . | . . . . Wheel 8 | 2 1 3 2 Hover . | . . . . Flight . | . . . . Utility 8 | 2 2 1 3 Device 3 | 1 . 1 1 Storage 2 | 1 1 . . Processor 2 | . 1 . 1 Hackware 1 | . . . 1 Protection . | . . . . Artifact . | . . . . Weapon 13 | 2 3 5 3 Energy Gun 1 | . . 1 . Energy Cannon 4 | . 3 1 . Ballistic Gun 5 | 2 . 2 1 Ballistic Cannon . | . . . . Launcher 1 | . . . 1 Special Weapon 2 | . . 1 1 Impact Weapon . | . . . . Slashing Weapon . | . . . . Piercing Weapon . | . . . . Special Melee Weapon . | . . . . Unidentified Prototypes . | . . . . Parts Lost 21 | . 1 7 13 Power 3 | . . 2 1 Propulsion 9 | . . 3 6 Utility 3 | . 1 . 2 Weapon 6 | . . 2 4 Highest Loss Streak 6 | . 1 3 6 To Critical Strikes . | . . . . Average Slot Usage (%) 91 | . 97 91 78 Engine 11 | . 14 11 7 Wheel 22 | . 27 22 14 Device 10 | . 7 12 11 Storage 13 | . 14 14 10 Processor 4 | . 4 1 7 Hackware 1 | . . . 7 Energy Gun 2 | . . 2 8 Energy Cannon 13 | . 13 20 4 Ballistic Gun 8 | . 14 4 2 Special Weapon 1 | . . 1 2 Naked Turns . | . . . . Heaviest Build 23 | 14 19 22 23 Greatest Support 32 | 32 32 26 26 Greatest Overweight (x) 4 | . . 2 4 Average Overweight (x) . | . . . . Largest Inventory Capacity 10 | 8 10 10 10 Average Capacity 9 | 7 8 10 9 Most Carried 10 | 7 10 10 10 Average Carried 7 | 3 8 7 8 Final Capacity 10 | 8 10 10 5 Final Carried 10 | 7 10 10 5 Class Distribution -------------------- 76% | Mutant 23% | Scavenger-Mutant Dominant Class ---------------- Mutant | -10/Materials Mutant | -10/Mines Scavenger-Mutant | -9/Materials Resources | -11 -10 -10 -9 ----------- Run | Yrd Mat Min Mat Matter Collected 625 | 273 182 120 50 Remotely 18 | . . . 18 Salvage Created 1163 | 83 380 371 329 Parts 81 | 7 18 20 36 Haulers Intercepted 1 | . 1 . . Recyclers Shooed 3 | . 3 . . Parts Field Recycled . | . . . . Retrieved Matter . | . . . . Parts Self-Destructed . | . . . . Prevented . | . . . . Kills | -11 -10 -10 -9 ------- Run | Yrd Mat Min Mat Combat Hostiles Destroyed 28 | . 5 9 14 Guns 9 | . 3 1 5 Cannons 14 | . 2 8 4 AOE 5 | . . . 5 Classes Destroyed 12 | 2 5 2 3 Worker 1 | . . . 1 Builder 5 | . 1 2 2 Tunneler 2 | 1 . 1 . Hauler 1 | . 1 . . Recycler 4 | 1 2 1 . Operator 3 | . 2 . 1 Watcher 1 | . . . 1 Swarmer 13 | . 3 3 7 Grunt 10 | . 2 4 4 Sentry 3 | . . . 3 Demolisher 1 | . . 1 . Assembled 1 | . . 1 . Best Kill Streak 8 | 2 3 6 8 Combat Bots Only 8 | . 3 3 8 Max Kills in Single Turn 2 | 1 2 1 2 Gunslinging . | . . . . Exploded 1 | . . . 1 Melee . | . . . . Uniques/NPCs Destroyed . | . . . . Combat | -11 -10 -10 -9 -------- Run | Yrd Mat Min Mat Hostile Shots Fired 184 | . 33 58 93 Missed 49 | . 10 15 24 Damage Taken 1844 | . 221 654 969 Core 612 | . 48 162 402 Absorbed by Shields . | . . . . Core Remaining (%) 58 | 100 . 16 . Volleys Fired 121 | 6 40 41 34 Largest 2 | 2 2 2 2 Hottest 165 | 40 120 160 165 Shots Fired 231 | 12 80 82 57 Gun 109 | 12 48 17 32 Cannon 108 | . 32 64 12 Launcher 10 | . . . 10 Special 4 | . . 1 3 Kinetic 85 | 12 48 15 10 Thermal 136 | . 32 67 37 Explosive 10 | . . . 10 Electromagnetic . | . . . . Robot Hit Streak 10 | 2 5 8 10 Robot Miss Streak 4 | 1 4 3 4 Penetration Max . | . . . . Secondary Targets . | . . . . Shots Hit Robots 132 | 7 39 48 38 Core Hits 62 | 4 15 19 24 Critical Kills 2 | . 2 . . Critical Parts Destroyed . | . . . . Critical Strikes 3 | . 2 . 1 Burn 1 | . . . 1 Meltdown 1 | . 1 . . Destroy 1 | . 1 . . Melee Attacks . | . . . . Impact . | . . . . Slashing . | . . . . Piercing . | . . . . Sneak Attacks . | . . . . Combat Hostiles . | . . . . Follow-up Attacks . | . . . . Damage Inflicted 2530 | 76 549 766 1139 Guns 725 | 76 219 103 327 Cannons 1167 | . 330 663 174 Explosions 590 | . . . 590 Melee . | . . . . Ramming . | . . . . Kinetic 445 | 76 219 90 60 Thermal 1495 | . 330 676 489 Explosive 590 | . . . 590 Electromagnetic . | . . . . Impact . | . . . . Slashing . | . . . . Piercing . | . . . . Highest Corruption 1 | . 1 1 . Average Corruption 1 | . 1 1 . Corruption Purged . | . . . . Corruption Blocked . | . . . . Effects 5 | . 3 2 . Matter Fused 1 | . . 1 . Heat Flow Errors 1 | . 1 . . Energy Discharges 1 | . 1 . . Misfires 1 | . . 1 . Alerts 1 | . 1 . . Overload Shots . | . . . . Overflow Damage 45 | . 12 . 33 Projectiles 12 | . 12 . . Explosions 33 | . . . 33 Melee . | . . . . Knockbacks . | . . . . Impact . | . . . . Kinetic . | . . . . Secondary . | . . . . Self-Inflicted Damage 112 | . . . 112 Shots 6 | . . . 6 Rammed . | . . . . Targets Rammed . | . . . . Kicked . | . . . . Crushed . | . . . . Highest Temperature 302 | . 288 302 60 Average Temperature 63 | . 94 57 18 Received Heat Transfer 543 | . 66 156 321 Siege Activations . | . . . . Robots Corrupted . | . . . . Combat Hostiles . | . . . . Parts Fried . | . . . . Impact Corruptions . | . . . . Robots Melted 1 | . 1 . . Combat Hostiles . | . . . . Parts Melted 8 | . 2 5 1 Heat Transferred 3319 | . 703 1443 1173 Parts Sabotaged . | . . . . Parts Stolen . | . . . . Parts Stripped . | . . . . Power Chain Reactions . | . . . . Alert | -11 -10 -10 -9 ------- Run | Yrd Mat Min Mat Peak Influence 506 | 10 163 185 506 Initial 72 | . 6 5 72 Average 129 | 3 97 117 245 Maximum Alert Level 2 | . . . 2 Low Security (%) 86 | 100 100 100 38 Level 1 10 | . . . 46 Level 2 3 | . . . 15 Level 3 . | . . . . Level 4 . | . . . . Level 5 . | . . . . High Security . | . . . . Max Security . | . . . . Squads Dispatched 3 | . 1 . 2 Investigation . | . . . . Extermination . | . . . . Reinforcement 3 | . 1 . 2 Assault . | . . . . Garrison . | . . . . Intercept . | . . . . Searches Triggered . | . . . . Construction Impeded . | . . . . Haulers Reinforced . | . . . . Active Scanning Responses . | . . . . Cargo Convoy Interrupts . | . . . . Stealth | -11 -10 -10 -9 --------- Run | Yrd Mat Min Mat Distress Signals 4 | . 1 . 3 Communications Jammed . | . . . . Distress Signals . | . . . . Times Spotted 50 | . 20 10 20 Peak Tracking Total 10 | . 4 3 10 Tactical Retreats 2 | . . . 2 Traps | -11 -10 -10 -9 ------- Run | Yrd Mat Min Mat Traps Triggered 2 | . 2 . . Indirectly . | . . . . Trap Hack Attempts . | . . . . Triggered . | . . . . Disarmed . | . . . . Reprogrammed . | . . . . Reused . | . . . . Traps Extracted . | . . . . Installed . | . . . . Triggered . | . . . . Machines | -11 -10 -10 -9 ---------- Run | Yrd Mat Min Mat Machines Disabled 1 | . . . 1 Max in Single Turn 1 | . . . 1 Machines Repaired . | . . . . Machines Dismantled . | . . . . Machines Sabotaged . | . . . . Overloaded Fab Kills . | . . . . Hacking | -11 -10 -10 -9 --------- Run | Yrd Mat Min Mat Machines Accessed 4 | . 2 . 2 Terminals 4 | . 2 . 2 Fabricators . | . . . . Repair Stations . | . . . . Recycling Units . | . . . . Scanalyzers . | . . . . Garrison Access . | . . . . Total Hacks 12 | . 4 . 8 Successful 6 | . 1 . 5 Failed 6 | . 3 . 3 Catastrophic 3 | . 2 . 1 Database Lockouts . | . . . . Manual . | . . . . Terminals 12 | . 4 . 8 Fabricators . | . . . . Repair Stations . | . . . . Recycling Units . | . . . . Scanalyzers . | . . . . Garrison Access . | . . . . Terminal Hacks 6 | . 1 . 5 Branch Access Points 1 | . . . 1 Locate Traps 1 | . 1 . . Investigation Status 1 | . . . 1 Reinforcement Status 1 | . . . 1 Recall Investigation 1 | . . . 1 Zone Layout 1 | . . . 1 Fabricator Hacks . | . . . . Repair Station Hacks . | . . . . Recycling Unit Hacks . | . . . . Scanalyzer . | . . . . Garrison Access Hacks . | . . . . Unauthorized Hacks . | . . . . Terminals . | . . . . Fabricators . | . . . . Repair Stations . | . . . . Recycling Units . | . . . . Scanalyzers . | . . . . Garrison Access . | . . . . Data Cores Recovered . | . . . . Used . | . . . . Hacking Detections 3 | . 1 . 2 Full Trace Events 3 | . 1 . 2 Feedback Events 1 | . 1 . . Corruption 1 | . 1 . . Feedback Blocked . | . . . . Robot Schematics Acquired . | . . . . Robots Built . | . . . . Authchips . | . . . . Time . | . . . . Total Robot Build Rating . | . . . . Part Schematics Acquired . | . . . . Parts Built . | . . . . Authchips . | . . . . Time . | . . . . Total Part Build Rating . | . . . . Parts Repaired . | . . . . Time . | . . . . Parts Recycled . | . . . . Recycled Matter . | . . . . Retrieved Matter . | . . . . Retrieved Components . | . . . . Parts Scanalyzed . | . . . . Part Schematics Acquired . | . . . . Parts Damaged . | . . . . Bothacking | -11 -10 -10 -9 ------------ Run | Yrd Mat Min Mat Used RIF Installer . | . . . . Robots Hacked . | . . . . Non-combat . | . . . . Combat . | . . . . Robot Hacks Applied . | . . . . Relay Couplers Released . | . . . . Fabnet Peak Effective % . | . . . . Robots Rewired . | . . . . Allies Hacked . | . . . . Hacks Repelled . | . . . . Allies | -11 -10 -10 -9 -------- Run | Yrd Mat Min Mat Total Allies . | . . . . Largest Group . | . . . . Highest-Rated Group . | . . . . Highest-Rated Ally . | . . . . Total Orders . | . . . . Ally Attacks . | . . . . Total Damage . | . . . . Kills . | . . . . Allies Corrupted . | . . . . Allies Melted . | . . . . Intel | -11 -10 -10 -9 ------- Run | Yrd Mat Min Mat Robot Analysis Total . | . . . . Derelict Logs Recovered 1 | . . 1 . Drone Launches . | . . . . Drone Recoveries . | . . . . Exploration | -11 -10 -10 -9 ------------- Run | Yrd Mat Min Mat Turns Passed 1123 | 86 448 335 254 Spaces Moved 699 | 52 321 190 136 Core 34 | 6 . . 28 Treads 1 | . . . 1 Legs . | . . . . Wheels 664 | 46 321 190 107 Hover . | . . . . Flight . | . . . . Fastest Speed 50 | 50 90 80 50 Average Speed 94 | 94 95 92 98 Slowest Speed 250 | 100 100 115 250 Overloaded Moves . | . . . . Propulsion Burnouts . | . . . . Robots Hopped . | . . . . Cave-ins Triggered . | . . . . Exploration Rate (%) 26 | 3 44 40 20 Regions Visited 3 Branch Regions 1 Pre-discovered Areas . | . . . . Known Exits Taken 2 | . 1 1 . Unknown Exits Taken 1 | 1 . . . Scrap Searched . | . . . . Spaces Dug . | . . . . Terrain Destroyed 44 | . . . 44 Melee . | . . . . Projectile 1 | . . . 1 AOE 43 | . . . 43 Terrain Rammed . | . . . . Walls Destroyed . | . . . . Machines Disabled . | . . . . Actions | -11 -10 -10 -9 --------- Run | Yrd Mat Min Mat Total 926 | 78 387 268 193 Wait 38 | . 13 19 6 Move 696 | 51 320 189 136 Hop . | . . . . Pick Up 32 | 14 6 7 5 Fast Attach 6 | . 3 1 2 Attach 24 | 7 3 7 7 Detach 1 | . . . 1 Swap 5 | . 1 3 1 Drop 3 | . 1 1 1 Fire 121 | 6 40 41 34 Melee . | . . . . Ram . | . . . . Kick . | . . . . Crush . | . . . . Escape Stasis . | . . . . Rewire . | . . . . Trap . | . . . . Miscellaneous . | . . . . Route ------- -11/Scrapyard -10/Materials (discovered 2 exits: *Mat / *Min) -10/Mines (discovered 2 exits: *Mat x2) -9/Materials (discovered 2 exits: [*Mat] / Min) History --------- Turn | Location | Event 20 | -11/Scrapyard | Discovered new exit (range 15) 87 | -11/Scrapyard | Entered Materials 314 | -10/Materials | Discovered new exit (range 7) 349 | -10/Materials | Build established: Mutant 391 | -10/Materials | Identified exit to Materials 469 | -10/Materials | Discovered new exit (range 10) 477 | -10/Materials | Identified exit to Mines 535 | -10/Materials | Entered Mines 536 | -10/Mines | Assembled infested the area 648 | -10/Mines | Core integrity fell below 50% 674 | -10/Mines | Lost 3 parts (1p1n1w) 731 | -10/Mines | Lost 3 parts (1p1n1w) 796 | -10/Mines | Core integrity fell below 20% 844 | -10/Mines | Discovered exit to Materials (range 7) 861 | -10/Mines | Received a Rocket Launcher from a helpful Derelict 870 | -10/Mines | Entered Materials 870 | -9/Materials | Evolved 2 slots: Utility x2 1004 | -9/Materials | Lost 3 parts (2n1w) 1012 | -9/Materials | Destroyed 8 combat bots 1069 | -9/Materials | Identified exit to Mines 1079 | -9/Materials | Discovered new exit (range 16) 1087 | -9/Materials | Lost 4 parts (1p2n1w) 1104 | -9/Materials | Core integrity fell below 50% 1113 | -9/Materials | Core integrity fell below 20% 1124 | -9/Materials | Destroyed by Y-45 Defender with Heavy Assault Rifle Last Messages --------------- Critical hit (Burn: +37). U-05 Engineer builds a Wall. K-01 Serf collects debris. U-05 Engineer lays Concrete. Acquired Lgt. Treads. U-05 Engineer lays Concrete. K-01 Serf collects debris. U-05 Engineer lays Concrete. Lgt. Treads destroyed. Critical hit (Burn: +37). Lgt. Treads destroyed. U-05 Engineer lays Concrete. K-01 Serf collects debris. U-05 Engineer builds a Wall. U-05 Engineer lays Concrete. U-05 Engineer builds a Wall. U-05 Engineer lays Concrete. The unstable cave ceiling collapses. K-01 Serf collects debris. U-05 Engineer lays Concrete. Map ----- +----------------------------------------------------+ | | | | | | | | | | | | | | | | | | | | | ?????????????????????????????????????????????????? | | ?????????????????????????????????????????????????? | | ?????????????????????????????????????????????????? | | ?????????????????????????????????????????????????? | | ?????????????????????????####????????????????????? | | ????????????????????????? #????????????????????? | | ????????????????????????? < #????????????????????? | | ???????????????? # #????????????????????? | | ???????????????? """ + #????????????????????? | | ???????????????? """ # #????????????????????? | | ???????????????? """ # #????????????????????? | | ???????????????? # ########?????????????? | | ????????????????######### # #?????????????? | | ?????????????????# # # #?????????????? | | ?????????????????# # # #?????????????? | | ?????????????????# /@ + #?????????????? | | ????????????????## # # #?????????????? | | ???????????????? # # # #?????????????? | | ???????????????? # # ########?????????????? | | ???????????????? ######## ##############???????? | | ???????????????? #?????## *# """ """ #???????? | | ???????????????? #????## *![ " """ """ #???????? | | ???????????????? #????## *Y """ """ #???????? | | ???????????????? #????## #???????? | | ???????????????? #????# ! #???????? | | ???????????????? #????# u ##+#######???????? | | ????????????????####### u u# ## ##????????????? | | ??????????? k #????????????? | | ??????????? [ ###########??? | | ??????????? *% = # #??? | | ???????????? ########### u #### # = #??? | | ?????????????????????## ## #?# # #??? | | ????????????????######## #?# # #??? | | ???????????????? ##?# + """ """ #??? | | ???????????????? """"" ##??# # """ """ #??? | | ???????????????? """"" ###???# = # """ """ #??? | | ???????????????? """"" #?????#=!!# #??? | | ???????????????? #?????#!%!###########??? | | ?????????????????????#####??????#/!!#????????????? | | ????????????????????????????????# =#????????????? | +----------------------------------------------------+ Best States ------------- Heat Dissipation 42 Energy Generation 10 Energy Capacity 250 Matter Stores 300 Matter Capacity 300 Sight Range 16 Terrain Scan Range 16 Terrain Scan Density 10 Evasion (%) 50 Targeting Accuracy 5 Offensive Hacking 10 Item Schematics ----------------- None Robot Schematics ------------------ None Fabricated ------------ Nothing Alien Tech Used ----------------- None Achievements -------------- None Challenges ------------ None Game ------ Seed NodeThermicWheel Manual? 0 Play Time 00:17:25 Cumulative 49.2 hours Start 2024.04.18 @ 05:26:58 End 2024.04.18 @ 05:45:59 Sessions 1 Manual Loads 0 Difficulty Rogue Special Mode None Game No. 56 Rogue 47 Adventurer 9 Explorer 0 Win Type - Total 0 Types 0/0/0/0/0/0/0/0/0 Lore% 31 Gallery% 46 Achievement% 37 Wizard Run 0 Options --------- Layout 1 ASCII 0 Keyboard 0 Movement Numpad Keybinds 0 Fullscreen 1 Font 24/Smallcaps Map View 50x35 Zoom Use 0% Tactical HUD 0 Map Filters NONE Filters NONE Steam 1 RUN: 78534722-1e52-483d-8b88-fc695015fdc9